fUST/lending_fUST_20250116
["ID","MTS","AMOUNT","RATE_DAILY","PERIOD"]
[349163863,1737001839902,-1144.59,0.00019178,2]
[349163865,1737001839911,-500.0,0.00019178,2]
[349163867,1737001839921,-1144.59,0.00019178,2]
[349163869,1737001839930,-1144.59,0.00019178,2]
[349163870,1737001839940,-1144.59,0.00019178,2]
[349163872,1737001839951,-1144.59,0.00019178,2]
[349163874,1737001839960,-500.0,0.00019178,2]
[349163876,1737001839969,-1144.59,0.00019178,2]
[349163878,1737001839978,-1144.59,0.00019178,2]
[349163880,1737001839989,-500.0,0.00019178,2]
[349163882,1737001839999,-1144.59,0.00019178,2]
[349163884,1737001840008,-1144.59,0.00019178,2]
[349163886,1737001840019,-1144.59,0.00019178,2]
[349163888,1737001840029,-1144.59,0.00019178,2]
[349163890,1737001840038,-1144.59,0.00019178,2]
[349163892,1737001840047,-1144.59,0.00019178,2]
[349163893,1737001840057,-1144.59,0.00019178,2]
[349163895,1737001840066,-1144.59,0.00019178,2]
[349163897,1737001840076,-1144.59,0.00019178,2]
[349163899,1737001840085,-1144.59,0.00019178,2]
[349163901,1737001840094,-1144.59,0.00019178,2]
[349163903,1737001840104,-1144.77652417,0.00019178,2]
[349163905,1737001840113,-501.63592278,0.00019178,2]
[349163906,1737001840123,-5786.45,0.00019178,2]
[349163908,1737001840132,-500.0,0.00019178,2]
[349163910,1737001840141,-1438.8,0.00019178,2]
[349163912,1737001840151,-2433.3,0.00019178,2]
[349163914,1737001840160,-500.0,0.00019178,2]
[349163916,1737001840169,-500.0,0.00019178,2]
[349163917,1737001840178,-500.0,0.00019178,2]
[349163918,1737001840187,-500.0,0.00019178,2]
[349163919,1737001840196,-500.0,0.00019178,2]
[349163920,1737001840205,-1252.63,0.00019178,2]
[349163921,1737001840214,-500.0,0.00019178,2]
[349163922,1737001840224,-500.0,0.00019178,2]
[349163923,1737001840233,-500.0,0.00019178,2]
[349163924,1737001840244,-500.0,0.00019178,2]
[349163925,1737001840253,-544.82,0.00019178,2]
[349163926,1737001840262,-503.80842288,0.00019178,2]
[349163927,1737001840271,-593.24,0.00019178,2]
[349163928,1737001840280,-500.0,0.00019178,2]
[349163929,1737001840289,-35155.74,0.00019178,2]
[349163930,1737001840298,-500.0,0.00019178,2]
[349163931,1737001840307,-500.0,0.00019178,2]
[349163932,1737001840316,-500.0,0.00019178,2]
[349163934,1737001840326,-500.0,0.00019178,2]
[349163935,1737001840335,-500.0,0.00019178,2]
[349163937,1737001840345,-1886.71,0.00019178,2]
[349163939,1737001840354,-500.0,0.00019178,2]
[349163941,1737001840364,-11268.26,0.00019178,2]
[349163943,1737001840373,-500.0,0.00019178,2]
[349163945,1737001840383,-635.76,0.00019178,2]
[349163948,1737001840393,-500.0,0.00019178,2]
[349163950,1737001840402,-1022.52,0.00019178,2]
[349163952,1737001840411,-500.0,0.00019178,2]
[349163954,1737001840421,-4060.76,0.00019178,2]
[349163956,1737001840430,-500.0,0.00019178,2]
[349163958,1737001840439,-1351.46,0.00019178,2]
[349163960,1737001840448,-500.0,0.00019178,2]
[349163962,1737001840458,-4785.32,0.00019178,2]
[349163964,1737001840467,-2473.45,0.00019178,2]
[349163966,1737001840477,-715.82,0.00019178,2]
[349163968,1737001840487,-500.0,0.00019178,2]
[349163970,1737001840496,-607.13,0.00019178,2]
[349163972,1737001840505,-500.0,0.00019178,2]
[349163974,1737001840514,-12523.28,0.00019178,2]
[349163976,1737001840523,-500.0,0.00019178,2]
[349163978,1737001840533,-500.0,0.00019178,2]
[349163980,1737001840543,-500.0,0.00019178,2]
[349163982,1737001840552,-500.0,0.00019178,2]
[349163984,1737001840561,-1984.62,0.00019178,2]
[349163986,1737001840570,-963.62,0.00019178,2]
[349163988,1737001840579,-500.0,0.00019178,2]
[349163990,1737001840589,-892.15,0.00019178,2]
[349163992,1737001840598,-500.0,0.00019178,2]
[349163994,1737001840607,-500.0,0.00019178,2]
[349163996,1737001840616,-500.0,0.00019178,2]
[349163998,1737001840625,-500.0,0.00019178,2]
[349164000,1737001840634,-647.9,0.00019178,2]
[349164002,1737001840643,-500.0,0.00019178,2]
[349164004,1737001840652,-3506.68,0.00019178,2]
[349164006,1737001840661,-403.44934802,0.00019178,2]
[349164008,1737001840671,-818.98,0.00019178,2]
[349164010,1737001840680,-500.0,0.00019178,2]
[349164012,1737001840689,-600.5844107,0.00019178,2]
[349164014,1737001840698,-500.0,0.00019178,2]
[349164015,1737001840707,-500.0,0.00019178,2]
[349164017,1737001840716,-500.0,0.00019178,2]
[349164020,1737001840731,-500.0,0.00019178,2]
[349164021,1737001840742,-500.0,0.00019178,2]
[349164023,1737001840751,-857.27,0.00019178,2]
[349164025,1737001840761,-1327.41,0.00019178,2]
[349164027,1737001840771,-500.0,0.00019178,2]
[349164029,1737001840780,-500.0,0.00019178,2]
[349164031,1737001840789,-3902.93,0.00019178,2]
[349164034,1737001840799,-1619.25,0.00019178,2]
[349164036,1737001840808,-4746.35,0.00019178,2]
[349164038,1737001840818,-500.0,0.00019178,2]
[349164040,1737001840827,-1358.67,0.00019178,2]
[349164042,1737001840836,-500.0,0.00019178,2]
[349164044,1737001840846,-1970.53,0.00019178,2]
[349164046,1737001840855,-196.93009315,0.00019178,2]
[349164048,1737001840863,-200.0,0.00019178,3]
[349164050,1737001840873,-666.58,0.00019178,2]
[349164052,1737001840882,-1000.0,0.00019178,7]
[349164054,1737001840891,-500.0,0.00019178,2]
[349164056,1737001840901,-912.58,0.00019178,2]
[349164058,1737001840910,-42697.79,0.00019178,2]
[349164060,1737001840919,-2076.66,0.00019178,2]
[349164062,1737001840928,-500.0,0.00019178,2]
[349164064,1737001840938,-500.0,0.00019178,2]
[349164066,1737001840950,-500.0,0.00019178,2]
[349164068,1737001840959,-500.0,0.00019178,2]
[349164070,1737001840968,-16668.92,0.00019178,2]
[349164072,1737001840978,-1552.92,0.00019178,2]
[349164074,1737001840989,-500.0,0.00019178,2]
[349164076,1737001840998,-1075.61,0.00019178,2]
[349164078,1737001841008,-500.0,0.00019178,2]
[349164080,1737001841019,-500.0,0.00019178,2]
[349164082,1737001841029,-2143.15,0.00019178,2]
[349164084,1737001841038,-500.0,0.00019178,2]
[349164086,1737001841047,-1602.06,0.00019178,2]
[349164088,1737001841057,-500.0,0.00019178,2]
[349164090,1737001841066,-500.0,0.00019178,2]
[349164092,1737001841076,-2674.39,0.00019178,2]
[349164094,1737001841085,-579.28,0.00019178,2]
[349164096,1737001841094,-1592.26,0.00019178,2]
[349164098,1737001841104,-2649.35,0.00019178,2]
[349164100,1737001841113,-500.0,0.00019178,2]
[349164102,1737001841122,-500.0,0.00019178,2]
[349164104,1737001841131,-500.0,0.00019178,2]
[349164106,1737001841140,-633.01,0.00019178,2]
[349164108,1737001841150,-3137.47,0.00019178,2]
[349164110,1737001841159,-500.0,0.00019178,2]
[349164112,1737001841167,-500.0,0.00019178,2]
[349164114,1737001841176,-500.0,0.00019178,2]
[349164116,1737001841185,-533.16,0.00019178,2]
[349164118,1737001841195,-500.0,0.00019178,2]
[349164120,1737001841204,-500.0,0.00019178,2]
[349164122,1737001841214,-500.0,0.00019178,2]
[349164124,1737001841223,-195.3295218,0.00019178,2]
[349164126,1737001841233,-159.14,0.00019178,2]
[349164128,1737001841242,-3000.0,0.0001918,2]
[349164130,1737001841252,-683.17421533,0.00019184,2]
[349164132,1737001841261,-3000.0,0.0001919,2]
[349164134,1737001841271,-3000.0,0.000192,2]
[349164136,1737001841280,-600.0,0.000192,2]
[349164138,1737001841289,-2310.0,0.00019201,2]
[349164140,1737001841299,-151.0,0.00019201,2]
[349164142,1737001841308,-151.0,0.00019201,2]
[349164144,1737001841318,-151.0,0.00019201,2]
[349164146,1737001841327,-151.0,0.00019201,2]
[349164148,1737001841336,-151.0,0.00019201,2]
[349164150,1737001841346,-151.0,0.00019201,2]
[349164152,1737001841355,-594.540266,0.00019201,2]
[349164154,1737001841365,-594.540266,0.00019201,2]
[349164156,1737001841374,-2068.0,0.00019201,2]
[349164158,1737001841383,-536.0,0.00019201,2]
[349164160,1737001841392,-3000.0,0.0001921,2]
[349164162,1737001841402,-155.62051,0.00019215,2]
[349164164,1737001841411,-152.0,0.0001923,2]
[349164166,1737001841420,-163.1272268,0.00019257,2]
[349164168,1737001841430,-180.0,0.000193,5]
[349164170,1737001841439,-180.0,0.000193,6]
[349164172,1737001841448,-209.8137221,0.000193,7]
[349164174,1737001841457,-151.0,0.00019315,2]
[349164176,1737001841466,-151.0,0.00019315,2]
[349164178,1737001841476,-151.0,0.00019315,2]
[349164180,1737001841486,-223.834064,0.00019315,2]
[349164182,1737001841495,-500.0,0.00019315,3]
[349164184,1737001841505,-396.12856023,0.00019315,3]
[349164186,1737001841514,-500.0,0.00019315,3]
[349164188,1737001841523,-500.0,0.00019315,3]
[349164190,1737001841533,-789.59,0.00019315,3]
[349164192,1737001841543,-668.16,0.00019315,3]
[349164194,1737001841553,-500.0,0.00019315,3]
[349164196,1737001841563,-500.0,0.00019315,3]
[349164198,1737001841572,-559.22,0.00019315,3]
[349164200,1737001841581,-500.0,0.00019315,3]
[349164202,1737001841591,-500.0,0.00019315,3]
[349164204,1737001841600,-500.0,0.00019315,3]
[349164217,1737001841705,-500.0,0.00019315,3]
[349164219,1737001841715,-500.0,0.00019315,3]
[349164221,1737001841724,-500.0,0.00019315,3]
[349164223,1737001841734,-500.0,0.00019315,3]
[349164225,1737001841743,-500.0,0.00019315,3]
[349164227,1737001841752,-518.60221912,0.00019315,3]
[349164229,1737001841762,-500.0,0.00019315,3]
[349164231,1737001841772,-500.0,0.00019315,3]
[349164233,1737001841782,-500.0,0.00019315,3]
[349164235,1737001841792,-500.0,0.00019315,3]
[349164237,1737001841801,-500.0,0.00019315,3]
[349164239,1737001841811,-500.0,0.00019315,3]
[349164241,1737001841820,-151.0,0.00019315,2]
[349164243,1737001841829,-151.0,0.00019315,2]
[349164245,1737001841838,-151.0,0.00019315,2]
[349164248,1737001841848,-500.0,0.00019315,3]
[349164250,1737001841857,-500.0,0.00019315,3]
[349164252,1737001841866,-500.0,0.00019315,3]
[349164254,1737001841876,-151.0,0.00019315,2]
[349164256,1737001841885,-151.0,0.00019315,2]
[349164258,1737001841894,-151.0,0.00019315,2]
[349164260,1737001841904,-151.60839,0.00019315,2]
[349164262,1737001841913,-151.0,0.00019315,2]
[349164264,1737001841923,-151.0,0.00019315,2]
[349164266,1737001841932,-151.0,0.00019315,2]
[349164268,1737001841942,-500.0,0.00019315,3]
[349164270,1737001841954,-151.0,0.00019315,2]
[349164272,1737001841964,-151.0,0.00019315,2]
[349164274,1737001841973,-151.0,0.00019315,2]
[349164276,1737001841982,-151.0,0.00019315,2]
[349164277,1737001841992,-151.0,0.00019315,2]
[349164279,1737001842002,-151.0,0.00019315,2]
[349164281,1737001842012,-151.0,0.00019315,2]
[349164283,1737001842021,-151.0,0.00019315,2]
[349164285,1737001842030,-585.38,0.00019315,3]
[349164287,1737001842040,-954.362824,0.00019315,2]
[349164289,1737001842049,-954.362824,0.00019315,2]
[349164291,1737001842059,-954.362824,0.00019315,2]
[349164293,1737001842068,-539.33285964,0.00019315,3]
[349164295,1737001842079,-954.362824,0.00019315,2]
[349164297,1737001842089,-954.362824,0.00019315,2]
[349164300,1737001842100,-151.0,0.00019315,2]
[349164302,1737001842109,-954.362824,0.00019315,2]
[349164304,1737001842118,-151.0,0.00019315,2]
[349164306,1737001842128,-954.362824,0.00019315,2]
[349164308,1737001842137,-151.0,0.00019315,2]
[349164310,1737001842146,-500.0,0.00019315,3]
[349164312,1737001842155,-151.0,0.00019315,2]
[349164314,1737001842166,-954.362824,0.00019315,2]
[349164316,1737001842175,-500.0,0.00019315,3]
[349164318,1737001842184,-500.0,0.00019315,3]
[349164320,1737001842194,-500.0,0.00019315,3]
[349164322,1737001842203,-500.0,0.00019315,3]
[349164324,1737001842212,-500.0,0.00019315,3]
[349164326,1737001842222,-504.29,0.00019315,3]
[349164328,1737001842231,-500.0,0.00019315,3]
[349164330,1737001842241,-934.91,0.00019315,3]
[349164332,1737001842250,-500.0,0.00019315,3]
[349164334,1737001842260,-837.74,0.00019315,3]
[349164336,1737001842269,-772.74,0.00019315,3]
[349164338,1737001842279,-500.0,0.00019315,3]
[349164340,1737001842288,-151.0,0.00019315,2]
[349164342,1737001842297,-151.0,0.00019315,2]
[349164345,1737001842306,-248.724101,0.00019315,2]
[349164347,1737001842315,-500.0,0.00019315,3]
[349164349,1737001842324,-720.89,0.00019315,3]
[349164351,1737001842334,-500.0,0.00019315,3]
[349164353,1737001842343,-500.0,0.00019315,3]
[349164355,1737001842354,-500.0,0.00019315,3]
[349164357,1737001842363,-192.518241,0.00019315,2]
[349164359,1737001842372,-192.518241,0.00019315,2]
[349164362,1737001842381,-192.518241,0.00019315,2]
[349164365,1737001842391,-192.518241,0.00019315,2]
[349164367,1737001842400,-192.518241,0.00019315,2]
[349164369,1737001842410,-192.518241,0.00019315,2]
[349164371,1737001842420,-192.518241,0.00019315,2]
[349164373,1737001842429,-192.518241,0.00019315,2]
[349164375,1737001842438,-500.0,0.00019315,3]
[349164377,1737001842448,-500.0,0.00019315,3]
[349164379,1737001842457,-595.49,0.00019315,3]
[349164381,1737001842466,-500.0,0.00019315,3]
[349164383,1737001842475,-690.6,0.00019315,3]
[349164385,1737001842485,-1118.48,0.00019315,3]
[349164387,1737001842494,-500.0,0.00019315,3]
[349164389,1737001842503,-500.0,0.00019315,3]
[349164391,1737001842513,-500.0,0.00019315,3]
[349164393,1737001842522,-1198.05,0.00019315,3]
[349164395,1737001842532,-500.0,0.00019315,3]
[349164397,1737001842541,-500.0,0.00019315,3]
[349164399,1737001842551,-919.52,0.00019315,3]
[349164401,1737001842560,-151.0,0.00019315,2]
[349164403,1737001842569,-151.0,0.00019315,2]
[349164405,1737001842578,-151.0,0.00019315,2]
[349164407,1737001842587,-1537.57,0.00019315,3]
[349164409,1737001842596,-500.0,0.00019315,3]
[349164411,1737001842605,-500.0,0.00019315,3]
[349164413,1737001842615,-808.29,0.00019315,3]
[349164415,1737001842624,-500.0,0.00019315,3]
[349164417,1737001842633,-500.0,0.00019315,3]
[349164420,1737001842643,-1435.89,0.00019315,3]
[349164421,1737001842652,-500.0,0.00019315,3]
[349164423,1737001842661,-500.0,0.00019315,3]
[349164425,1737001842671,-500.0,0.00019315,3]
[349164427,1737001842680,-390.5059327,0.00019315,3]
[349164430,1737001842690,-787.89,0.00019315,3]
[349164432,1737001842699,-667.18,0.00019315,3]
[349164434,1737001842710,-500.0,0.00019315,3]
[349164435,1737001842719,-632.25,0.00019315,3]
[349164437,1737001842728,-500.0,0.00019315,3]
[349164439,1737001842738,-151.0,0.00019315,2]
[349164441,1737001842747,-151.0,0.00019315,2]
[349164443,1737001842756,-151.0,0.00019315,2]
[349164445,1737001842765,-151.0,0.00019315,2]
[349164447,1737001842775,-151.0,0.00019315,2]
[349164449,1737001842783,-151.0,0.00019315,2]
[349164451,1737001842793,-500.0,0.00019315,3]
[349164453,1737001842802,-500.0,0.00019315,3]
[349164455,1737001842811,-567.06,0.00019315,3]
[349164457,1737001842820,-500.0,0.00019315,3]
[349164459,1737001842829,-766.32,0.00019315,3]
[349164461,1737001842839,-500.0,0.00019315,3]
[349164463,1737001842848,-555.3,0.00019315,3]
[349164465,1737001842858,-339.997652,0.00019315,2]
[349164467,1737001842867,-339.997652,0.00019315,2]
[349164469,1737001842875,-339.997652,0.00019315,2]
[349164470,1737001842884,-339.997652,0.00019315,2]
[349164471,1737001842893,-339.997652,0.00019315,2]
[349164472,1737001842903,-339.997652,0.00019315,2]
[349164473,1737001842912,-339.997652,0.00019315,2]
[349164474,1737001842921,-339.997652,0.00019315,2]
[349164475,1737001842930,-562.37,0.00019315,3]
[349164476,1737001842939,-500.0,0.00019315,3]
[349164477,1737001842953,-810.03,0.00019315,3]
[349164479,1737001842962,-984.74,0.00019315,3]
[349164480,1737001842972,-1676.86,0.00019315,3]
[349164481,1737001842981,-500.0,0.00019315,3]
[349164482,1737001842991,-500.0,0.00019315,3]
[349164483,1737001843001,-500.0,0.00019315,3]
[349164484,1737001843010,-500.0,0.00019315,3]
[349164485,1737001843020,-508.49023953,0.00019315,3]
[349164486,1737001843030,-517.0,0.00019315,3]
[349164487,1737001843040,-500.0,0.00019315,3]
[349164488,1737001843049,-151.0,0.00019315,2]
[349164489,1737001843058,-151.0,0.00019315,2]
[349164490,1737001843068,-151.0,0.00019315,2]
[349164491,1737001843077,-151.0,0.00019315,2]
[349164492,1737001843087,-500.0,0.00019315,3]
[349164493,1737001843096,-649.0,0.00019315,3]
[349164494,1737001843106,-500.0,0.00019315,3]
[349164495,1737001843115,-745.32,0.00019315,3]
[349164496,1737001843124,-500.0,0.00019315,3]
[349164497,1737001843133,-1421.18,0.00019315,3]
[349164498,1737001843142,-918.6,0.00019315,3]
[349164499,1737001843151,-151.0,0.00019315,2]
[349164500,1737001843160,-151.0,0.00019315,2]
[349164501,1737001843169,-151.0,0.00019315,2]
[349164502,1737001843179,-624.49,0.00019315,3]
[349164503,1737001843188,-511.234499,0.00019315,2]
[349164504,1737001843197,-511.234499,0.00019315,2]
[349164505,1737001843206,-511.234499,0.00019315,2]
[349164507,1737001843215,-511.234499,0.00019315,2]
[349164509,1737001843223,-500.0,0.00019315,3]
[349164511,1737001843233,-500.0,0.00019315,3]
[349164513,1737001843242,-263.894382,0.00019315,2]
[349164515,1737001843251,-263.894382,0.00019315,2]
[349164517,1737001843260,-263.894382,0.00019315,2]
[349164519,1737001843269,-263.894382,0.00019315,2]
[349164521,1737001843279,-520.23,0.00019315,3]
[349164523,1737001843287,-511.234499,0.00019315,2]
[349164525,1737001843296,-263.894382,0.00019315,2]
[349164527,1737001843305,-511.234499,0.00019315,2]
[349164528,1737001843314,-263.894382,0.00019315,2]
[349164529,1737001843324,-511.234499,0.00019315,2]
[349164530,1737001843333,-511.234499,0.00019315,2]
[349164531,1737001843342,-263.894382,0.00019315,2]
[349164532,1737001843353,-263.894382,0.00019315,2]
[349164533,1737001843362,-500.0,0.00019315,3]
[349164534,1737001843371,-527.17,0.00019315,3]
[349164535,1737001843381,-500.0,0.00019315,3]
[349164536,1737001843391,-500.0,0.00019315,3]
[349164537,1737001843399,-500.0,0.00019315,3]
[349164538,1737001843409,-151.0,0.00019315,2]
[349164539,1737001843419,-151.0,0.00019315,2]
[349164540,1737001843427,-151.0,0.00019315,2]
[349164542,1737001843437,-151.0,0.00019315,2]
[349164544,1737001843446,-500.0,0.00019315,3]
[349164546,1737001843455,-151.0,0.00019315,2]
[349164548,1737001843464,-151.0,0.00019315,2]
[349164550,1737001843473,-151.0,0.00019315,2]
[349164552,1737001843483,-594.540266,0.00019315,2]
[349164554,1737001843492,-594.540266,0.00019315,2]
[349164556,1737001843501,-500.0,0.00019315,3]
[349164558,1737001843511,-594.540266,0.00019315,2]
[349164560,1737001843520,-311.39618121,0.00019315,3]
[349164562,1737001843529,-594.540266,0.00019315,2]
[349164564,1737001843538,-594.540266,0.00019315,2]
[349164566,1737001843547,-594.540266,0.00019315,2]
[349164568,1737001843556,-151.0,0.00019315,2]
[349164570,1737001843566,-151.0,0.00019315,2]
[349164572,1737001843575,-151.0,0.00019315,2]
[349164574,1737001843584,-500.0,0.00019315,3]
[349164576,1737001843592,-151.0,0.00019315,2]
[349164578,1737001843603,-500.0,0.00019315,3]
[349164580,1737001843612,-836.16,0.00019315,3]
[349164581,1737001843622,-500.0,0.00019315,3]
[349164583,1737001843631,-151.0,0.00019315,2]
[349164585,1737001843640,-151.0,0.00019315,2]
[349164587,1737001843649,-151.0,0.00019315,2]
[349164589,1737001843658,-500.0,0.00019315,3]
[349164591,1737001843668,-500.0,0.00019315,3]
[349164603,1737001843769,-500.0,0.00019315,3]
[349164605,1737001843779,-500.0,0.00019315,3]
[349164607,1737001843789,-500.0,0.00019315,3]
[349164609,1737001843799,-5786.45,0.00019315,3]
[349164611,1737001843807,-500.0,0.00019315,3]
[349164613,1737001843817,-1438.8,0.00019315,2]
[349164615,1737001843826,-2433.3,0.00019315,3]
[349164617,1737001843835,-500.0,0.00019315,3]
[349164619,1737001843845,-500.0,0.00019315,3]
[349164621,1737001843854,-163.272708,0.00019315,2]
[349164623,1737001843865,-500.0,0.00019315,3]
[349164625,1737001843876,-1252.63,0.00019315,3]
[349164627,1737001843886,-500.0,0.00019315,3]
[349164629,1737001843895,-500.0,0.00019315,3]
[349164631,1737001843905,-500.0,0.00019315,3]
[349164633,1737001843914,-500.0,0.00019315,3]
[349164635,1737001843924,-544.82,0.00019315,3]
[349164637,1737001843933,-593.24,0.00019315,3]
[349164639,1737001843945,-500.0,0.00019315,3]
[349164641,1737001843956,-35155.74,0.00019315,3]
[349164643,1737001843966,-500.0,0.00019315,3]
[349164645,1737001843975,-151.0,0.00019315,2]
[349164647,1737001843984,-151.0,0.00019315,2]
[349164649,1737001843994,-151.0,0.00019315,2]
[349164651,1737001844003,-500.0,0.00019315,3]
[349164653,1737001844013,-500.0,0.00019315,3]
[349164655,1737001844024,-1886.71,0.00019315,3]
[349164657,1737001844034,-500.0,0.00019315,3]
[349164660,1737001844043,-500.0,0.00019315,3]
[349164662,1737001844052,-151.0,0.00019315,2]
[349164663,1737001844062,-151.0,0.00019315,2]
[349164665,1737001844071,-151.0,0.00019315,2]
[349164668,1737001844081,-151.0,0.00019315,2]
[349164670,1737001844090,-11268.26,0.00019315,3]
[349164672,1737001844099,-659.618751,0.00019315,2]
[349164673,1737001844109,-500.0,0.00019315,3]
[349164675,1737001844118,-659.618751,0.00019315,2]
[349164677,1737001844128,-635.76,0.00019315,3]
[349164679,1737001844137,-659.618751,0.00019315,2]
[349164682,1737001844147,-152.27187,0.00019315,2]
[349164684,1737001844156,-659.618751,0.00019315,2]
[349164686,1737001844165,-659.618751,0.00019315,2]
[349164687,1737001844175,-659.618751,0.00019315,2]
[349164690,1737001844184,-500.0,0.00019315,3]
[349164691,1737001844194,-1022.52,0.00019315,3]
[349164693,1737001844203,-4060.76,0.00019315,3]
[349164695,1737001844212,-1351.46,0.00019315,3]
[349164697,1737001844221,-4785.32,0.00019315,3]
[349164699,1737001844230,-2473.45,0.00019315,3]
[349164701,1737001844239,-715.82,0.00019315,3]
[349164703,1737001844248,-500.0,0.00019315,3]
[349164705,1737001844257,-607.13,0.00019315,3]
[349164707,1737001844267,-500.0,0.00019315,3]
[349164709,1737001844276,-12523.28,0.00019315,3]
[349164711,1737001844285,-500.0,0.00019315,3]
[349164713,1737001844295,-500.0,0.00019315,3]
[349164715,1737001844305,-500.0,0.00019315,3]
[349164717,1737001844314,-1984.62,0.00019315,3]
[349164720,1737001844324,-963.62,0.00019315,3]
[349164721,1737001844333,-151.0,0.00019315,2]
[349164723,1737001844343,-151.0,0.00019315,2]
[349164725,1737001844352,-151.0,0.00019315,2]
[349164727,1737001844361,-151.0,0.00019315,2]
[349164729,1737001844370,-151.0,0.00019315,2]
[349164731,1737001844379,-151.0,0.00019315,2]
[349164733,1737001844388,-256.499968,0.00019315,2]
[349164735,1737001844397,-151.0,0.00019315,2]
[349164737,1737001844407,-151.0,0.00019315,2]
[349164739,1737001844417,-151.0,0.00019315,2]
[349164741,1737001844426,-892.15,0.00019315,3]
[349164744,1737001844436,-153.838957,0.00019315,2]
[349164746,1737001844446,-500.0,0.00019315,3]
[349164748,1737001844455,-500.0,0.00019315,3]
[349164750,1737001844464,-500.0,0.00019315,3]
[349164751,1737001844474,-500.0,0.00019315,3]
[349164754,1737001844483,-647.9,0.00019315,3]
[349164756,1737001844493,-500.0,0.00019315,3]
[349164758,1737001844503,-3506.68,0.00019315,3]
[349164760,1737001844512,-151.0,0.00019315,2]
[349164762,1737001844521,-151.0,0.00019315,2]
[349164764,1737001844531,-151.0,0.00019315,2]
[349164766,1737001844540,-818.98,0.00019315,3]
[349164768,1737001844550,-500.0,0.00019315,3]
[349164770,1737001844559,-533.88007422,0.00019315,3]
[349164772,1737001844568,-500.0,0.00019315,3]
[349164774,1737001844577,-500.0,0.00019315,3]
[349164776,1737001844586,-500.0,0.00019315,3]
[349164778,1737001844595,-500.0,0.00019315,3]
[349164780,1737001844605,-857.27,0.00019315,3]
[349164782,1737001844614,-1327.41,0.00019315,3]
[349164784,1737001844623,-3840.05124,0.00019315,2]
[349164786,1737001844632,-3840.05124,0.00019315,2]
[349164788,1737001844641,-3840.05124,0.00019315,2]
[349164790,1737001844650,-3840.05124,0.00019315,2]
[349164792,1737001844659,-3840.05124,0.00019315,2]
[349164794,1737001844669,-3840.05124,0.00019315,2]
[349164796,1737001844678,-500.0,0.00019315,3]
[349164798,1737001844687,-500.0,0.00019315,3]
[349164800,1737001844696,-433.773815,0.00019315,2]
[349164802,1737001844705,-3902.93,0.00019315,3]
[349164804,1737001844714,-433.773815,0.00019315,2]
[349164806,1737001844723,-433.773815,0.00019315,2]
[349164807,1737001844731,-1619.25,0.00019315,3]
[349164810,1737001844741,-4746.35,0.00019315,3]
[349164811,1737001844750,-433.773815,0.00019315,2]
[349164814,1737001844761,-433.773815,0.00019315,2]
[349164816,1737001844770,-433.773815,0.00019315,2]
[349164818,1737001844779,-151.0,0.00019315,2]
[349164820,1737001844788,-152.876548,0.00019315,2]